[Event "Titled Tuesday Blitz January 10 Late 2023"]
[White "Zanette, Edgard Vinicius"]
[Black "Michalski, Olaf"]
[WhiteFideId "2109263"]
[BlackFideId "1106740"]
[WhiteElo "2085"]
[BlackElo "2273"]
[Result "1-0"]
[Round "06"]
[TimeControl "180+2"]
[Date "2023.01.10"]
[WhiteClock "0:00:13"]
[BlackClock "0:00:01"]

1. e4 {[%clk 0:00:00]}  c5 {[%clk 0:00:00]} 2. Nc3 {[%clk 0:02:56]}  a6 {[%clk 0:02:59]} 3. f4 {[%clk 0:02:56]}  b5 {[%clk 0:02:58]} 4. Nf3 {[%clk 0:02:55]}  Bb7 {[%clk 0:02:59]} 5. d3 {[%clk 0:02:55]}  e6 {[%clk 0:02:59]} 6. g3 {[%clk 0:02:55]}  f5 {[%clk 0:02:59]} 7. exf5 {[%clk 0:02:50]}  exf5 {[%clk 0:02:57]} 8. Bg2 {[%clk 0:02:46]}  Nf6 {[%clk 0:02:56]} 9. O-O {[%clk 0:02:38]}  Be7 {[%clk 0:02:45]} 10. Ne5 {[%clk 0:02:34]}  Bxg2 {[%clk 0:02:44]} 11. Kxg2 {[%clk 0:02:23]}  d5 {[%clk 0:02:40]} 12. Qf3 {[%clk 0:02:24]}  b4 {[%clk 0:02:31]} 13. Ne2 {[%clk 0:02:18]}  O-O {[%clk 0:02:24]} 14. Be3 {[%clk 0:02:05]}  Nbd7 {[%clk 0:02:19]} 15. Nc6 {[%clk 0:02:02]}  Qe8 {[%clk 0:02:06]} 16. Nxe7+ {[%clk 0:01:59]}  Qxe7 {[%clk 0:02:05]} 17. Rae1 {[%clk 0:01:58]}  Rfe8 {[%clk 0:02:05]} 18. Bd2 {[%clk 0:01:58]}  Qf7 {[%clk 0:01:27]} 19. h3 {[%clk 0:01:56]}  d4 {[%clk 0:01:23]} 20. Nc1 {[%clk 0:01:52]}  Nd5 {[%clk 0:01:22]} 21. Nb3 {[%clk 0:01:24]}  a5 {[%clk 0:01:14]} 22. Rxe8+ {[%clk 0:01:09]}  Rxe8 {[%clk 0:01:11]} 23. Nxa5 {[%clk 0:01:08]}  Ne3+ {[%clk 0:01:03]} 24. Bxe3 {[%clk 0:01:00]}  Rxe3 {[%clk 0:00:50]} 25. Qa8+ {[%clk 0:01:00]}  Re8 {[%clk 0:00:50]} 26. Qc6 {[%clk 0:01:00]}  h5 {[%clk 0:00:38]} 27. Rf2 {[%clk 0:00:59]}  Re6 {[%clk 0:00:27]} 28. Qd5 {[%clk 0:00:50]}  Kh7 {[%clk 0:00:20]} 29. Nc4 {[%clk 0:00:44]}  Nf6 {[%clk 0:00:16]} 30. Qxf5+ {[%clk 0:00:41]}  g6 {[%clk 0:00:14]} 31. Qxc5 {[%clk 0:00:41]}  Qb7+ {[%clk 0:00:14]} 32. Kg1 {[%clk 0:00:38]}  Re1+ {[%clk 0:00:12]} 33. Rf1 {[%clk 0:00:21]}  Rxf1+ {[%clk 0:00:09]} 34. Kxf1 {[%clk 0:00:22]}  Qf3+ {[%clk 0:00:09]} 35. Ke1 {[%clk 0:00:23]}  Qxg3+ {[%clk 0:00:08]} 36. Ke2 {[%clk 0:00:21]}  Qg2+ {[%clk 0:00:08]} 37. Ke1 {[%clk 0:00:19]}  Qh1+ {[%clk 0:00:04]} 38. Kf2 {[%clk 0:00:17]}  Qxh3 {[%clk 0:00:02]} 39. Qe7+ {[%clk 0:00:18]}  Kh6 {[%clk 0:00:02]} 40. Qe4 {[%clk 0:00:16]}  Ng4+ {[%clk 0:00:01]} 41. Ke2 {[%clk 0:00:13]}  Qh2+ {[%clk 0:00:01]} 42. Kd1 {[%clk 0:00:12]}  Nf2+ {[%clk 0:00:01]} 43. Ke1 {[%clk 0:00:13]} 1-0


[Site "https://www.chess.com"]

[Event "Titled Tuesday Blitz January 10 Late 2023"]
[White "Guimaraes, Wagner Peixoto"]
[Black "Harish, Neeraj"]
[WhiteFideId "2100940"]
[BlackFideId "30958130"]
[WhiteElo "2194"]
[BlackElo "2232"]
[Result "1/2-1/2"]
[Round "06"]
[TimeControl "180+2"]
[Date "2023.01.10"]
[WhiteClock "0:00:20"]
[BlackClock "0:00:18"]

1. c4 {[%clk 0:00:00]}  e5 {[%clk 0:00:00]} 2. g3 {[%clk 0:03:00]}  Nf6 {[%clk 0:02:55]} 3. Bg2 {[%clk 0:03:00]}  d5 {[%clk 0:02:55]} 4. cxd5 {[%clk 0:03:00]}  Nxd5 {[%clk 0:02:53]} 5. Nc3 {[%clk 0:03:01]}  Nb6 {[%clk 0:02:53]} 6. Nf3 {[%clk 0:03:01]}  Nc6 {[%clk 0:02:52]} 7. O-O {[%clk 0:03:01]}  Be7 {[%clk 0:02:52]} 8. d3 {[%clk 0:03:00]}  O-O {[%clk 0:02:51]} 9. Be3 {[%clk 0:03:01]}  Be6 {[%clk 0:02:50]} 10. Rc1 {[%clk 0:02:58]}  f6 {[%clk 0:02:47]} 11. a3 {[%clk 0:02:55]}  Nd5 {[%clk 0:02:46]} 12. Bd2 {[%clk 0:02:53]}  Qd7 {[%clk 0:02:45]} 13. Ne4 {[%clk 0:02:43]}  Rad8 {[%clk 0:02:36]} 14. Nc5 {[%clk 0:02:42]}  Bxc5 {[%clk 0:02:10]} 15. Rxc5 {[%clk 0:02:38]}  Nce7 {[%clk 0:02:09]} 16. Re1 {[%clk 0:02:39]}  b6 {[%clk 0:02:05]} 17. Rc1 {[%clk 0:02:25]}  c5 {[%clk 0:01:57]} 18. b4 {[%clk 0:02:24]}  cxb4 {[%clk 0:01:57]} 19. axb4 {[%clk 0:02:08]}  Rc8 {[%clk 0:01:52]} 20. Rxc8 {[%clk 0:02:08]}  Rxc8 {[%clk 0:01:52]} 21. Qa1 {[%clk 0:02:06]}  Nc6 {[%clk 0:01:53]} 22. Qb2 {[%clk 0:02:03]}  Qe7 {[%clk 0:01:49]} 23. Rf1 {[%clk 0:01:56]}  Ndxb4 {[%clk 0:01:41]} 24. Rc1 {[%clk 0:01:36]}  Nd5 {[%clk 0:01:37]} 25. e4 {[%clk 0:01:31]}  Ndb4 {[%clk 0:01:29]} 26. Bxb4 {[%clk 0:01:26]}  Qxb4 {[%clk 0:01:25]} 27. Qe2 {[%clk 0:01:15]}  Nd4 {[%clk 0:01:25]} 28. Rxc8+ {[%clk 0:01:08]}  Bxc8 {[%clk 0:01:16]} 29. Nxd4 {[%clk 0:01:07]}  Qxd4 {[%clk 0:01:17]} 30. Qa2+ {[%clk 0:01:04]}  Kf8 {[%clk 0:01:14]} 31. Qxa7 {[%clk 0:01:04]}  Qxd3 {[%clk 0:01:12]} 32. Qb8 {[%clk 0:01:00]}  Qc2 {[%clk 0:01:01]} 33. Qxb6 {[%clk 0:00:54]}  Qc1+ {[%clk 0:00:31]} 34. Bf1 {[%clk 0:00:29]}  Bh3 {[%clk 0:00:22]} 35. Qb5 {[%clk 0:00:30]}  Kf7 {[%clk 0:00:22]} 36. Qc4+ {[%clk 0:00:21]}  Qxc4 {[%clk 0:00:18]} 37. Bxc4+ {[%clk 0:00:17]}  Kg6 {[%clk 0:00:17]} 38. f3 {[%clk 0:00:18]}  Bd7 {[%clk 0:00:18]} 39. Kf2 {[%clk 0:00:18]}  h5 {[%clk 0:00:17]} 40. h4 {[%clk 0:00:18]}  Kh6 {[%clk 0:00:18]} 41. Be2 {[%clk 0:00:18]}  g5 {[%clk 0:00:17]} 42. hxg5+ {[%clk 0:00:17]}  Kxg5 {[%clk 0:00:17]} 43. Bd3 {[%clk 0:00:17]}  Bc6 {[%clk 0:00:17]} 44. Bc2 {[%clk 0:00:16]}  h4 {[%clk 0:00:14]} 45. gxh4+ {[%clk 0:00:16]}  Kxh4 {[%clk 0:00:14]} 46. Bd3 {[%clk 0:00:16]}  Kg5 {[%clk 0:00:15]} 47. Be2 {[%clk 0:00:16]}  Kf4 {[%clk 0:00:15]} 48. Bd3 {[%clk 0:00:16]}  Ba4 {[%clk 0:00:15]} 49. Be2 {[%clk 0:00:17]}  Bb3 {[%clk 0:00:16]} 50. Bd3 {[%clk 0:00:17]}  Bd1 {[%clk 0:00:16]} 51. Be2 {[%clk 0:00:17]}  Bxe2 {[%clk 0:00:16]} 52. Kxe2 {[%clk 0:00:17]}  Kg3 {[%clk 0:00:16]} 53. Ke3 {[%clk 0:00:18]}  Kh4 {[%clk 0:00:15]} 54. f4 {[%clk 0:00:17]}  Kg4 {[%clk 0:00:13]} 55. fxe5 {[%clk 0:00:17]}  fxe5 {[%clk 0:00:13]} 56. Ke2 {[%clk 0:00:17]}  Kf4 {[%clk 0:00:13]} 57. Kf2 {[%clk 0:00:17]}  Kxe4 {[%clk 0:00:13]} 58. Ke2 {[%clk 0:00:17]}  Kd4 {[%clk 0:00:13]} 59. Kd2 {[%clk 0:00:18]}  e4 {[%clk 0:00:14]} 60. Ke2 {[%clk 0:00:18]}  e3 {[%clk 0:00:14]} 61. Ke1 {[%clk 0:00:19]}  Ke4 {[%clk 0:00:15]} 62. Ke2 {[%clk 0:00:19]}  Kd4 {[%clk 0:00:16]} 63. Ke1 {[%clk 0:00:19]}  Kd3 {[%clk 0:00:16]} 64. Kd1 {[%clk 0:00:20]}  e2+ {[%clk 0:00:17]} 65. Ke1 {[%clk 0:00:20]}  Ke3 {[%clk 0:00:18]} 1/2-1/2


[Site "https://www.chess.com"]

[Event "Titled Tuesday Blitz January 10 Late 2023"]
[White "Cueto, Jonny"]
[Black "Dias, Joao Batista"]
[WhiteFideId "3300145"]
[BlackFideId "2108240"]
[WhiteElo "2122"]
[BlackElo "1796"]
[Result "1-0"]
[Round "06"]
[TimeControl "180+2"]
[Date "2023.01.10"]
[WhiteClock "0:00:21"]
[BlackClock "0:01:21"]

1. d4 {[%clk 0:00:00]}  d5 {[%clk 0:00:00]} 2. Bf4 {[%clk 0:03:00]}  Nf6 {[%clk 0:02:59]} 3. e3 {[%clk 0:03:01]}  g6 {[%clk 0:02:58]} 4. Nc3 {[%clk 0:02:57]}  Bg7 {[%clk 0:02:58]} 5. h4 {[%clk 0:02:47]}  h5 {[%clk 0:02:59]} 6. Be2 {[%clk 0:02:47]}  c6 {[%clk 0:02:57]} 7. Nf3 {[%clk 0:02:46]}  Nbd7 {[%clk 0:02:55]} 8. Qd2 {[%clk 0:02:46]}  Nf8 {[%clk 0:02:53]} 9. Ne5 {[%clk 0:02:37]}  Ne6 {[%clk 0:02:53]} 10. Bg3 {[%clk 0:02:29]}  a5 {[%clk 0:02:52]} 11. f3 {[%clk 0:02:02]}  a4 {[%clk 0:02:44]} 12. a3 {[%clk 0:01:44]}  O-O {[%clk 0:02:43]} 13. Bf2 {[%clk 0:01:41]}  c5 {[%clk 0:02:42]} 14. g4 {[%clk 0:01:37]}  cxd4 {[%clk 0:02:39]} 15. exd4 {[%clk 0:01:29]}  hxg4 {[%clk 0:02:36]} 16. fxg4 {[%clk 0:01:25]}  Ne4 {[%clk 0:02:31]} 17. Nxe4 {[%clk 0:01:15]}  dxe4 {[%clk 0:02:31]} 18. O-O-O {[%clk 0:01:07]}  Bxe5 {[%clk 0:02:31]} 19. dxe5 {[%clk 0:01:08]}  Qxd2+ {[%clk 0:02:28]} 20. Rxd2 {[%clk 0:01:07]}  Nf4 {[%clk 0:02:28]} 21. Bc4 {[%clk 0:01:05]}  Be6 {[%clk 0:02:26]} 22. Be3 {[%clk 0:01:00]}  Bxc4 {[%clk 0:02:24]} 23. Bxf4 {[%clk 0:00:50]}  Rfd8 {[%clk 0:02:21]} 24. Rhd1 {[%clk 0:00:50]}  Rxd2 {[%clk 0:02:20]} 25. Rxd2 {[%clk 0:00:45]}  Be6 {[%clk 0:02:19]} 26. g5 {[%clk 0:00:43]}  Kf8 {[%clk 0:02:11]} 27. Rd4 {[%clk 0:00:40]}  b5 {[%clk 0:02:07]} 28. Kd2 {[%clk 0:00:40]}  Rc8 {[%clk 0:02:05]} 29. c3 {[%clk 0:00:38]}  Bf5 {[%clk 0:02:02]} 30. Ke3 {[%clk 0:00:37]}  Rc6 {[%clk 0:02:00]} 31. Rd5 {[%clk 0:00:37]}  Rb6 {[%clk 0:01:53]} 32. Rc5 {[%clk 0:00:35]}  e6 {[%clk 0:01:53]} 33. Kf2 {[%clk 0:00:33]}  Ke7 {[%clk 0:01:53]} 34. Be3 {[%clk 0:00:29]}  Rb8 {[%clk 0:01:48]} 35. Rc7+ {[%clk 0:00:29]}  Ke8 {[%clk 0:01:46]} 36. Bc5 {[%clk 0:00:26]}  Kd8 {[%clk 0:01:45]} 37. Rxf7 {[%clk 0:00:24]}  Ke8 {[%clk 0:01:22]} 38. Re7+ {[%clk 0:00:23]}  Kd8 {[%clk 0:01:21]} 39. Rf7 {[%clk 0:00:22]}  Ke8 {[%clk 0:01:21]} 40. Rf8+ {[%clk 0:00:21]} 1-0


[Site "https://www.chess.com"]

[Event "Titled Tuesday Blitz January 10 Late 2023"]
[White "Almedina Ortiz, Edgardo J."]
[Black "Prohorov, Olexandr"]
[WhiteFideId "3100197"]
[BlackFideId "14105578"]
[WhiteElo "2156"]
[BlackElo "2086"]
[Result "1-0"]
[Round "06"]
[TimeControl "180+2"]
[Date "2023.01.10"]
[WhiteClock "0:00:38"]
[BlackClock "0:00:18"]

1. d4 {[%clk 0:00:00]}  d6 {[%clk 0:00:00]} 2. Bf4 {[%clk 0:03:00]}  g6 {[%clk 0:01:20]} 3. e4 {[%clk 0:02:57]}  Bg7 {[%clk 0:01:18]} 4. Nc3 {[%clk 0:02:55]}  c6 {[%clk 0:01:18]} 5. Qd2 {[%clk 0:02:52]}  b5 {[%clk 0:01:11]} 6. Nf3 {[%clk 0:02:49]}  Nf6 {[%clk 0:01:06]} 7. Bd3 {[%clk 0:02:32]}  Bg4 {[%clk 0:00:57]} 8. Bh6 {[%clk 0:02:27]}  Bxh6 {[%clk 0:00:49]} 9. Qxh6 {[%clk 0:02:15]}  b4 {[%clk 0:00:48]} 10. Ne2 {[%clk 0:02:14]}  Qa5 {[%clk 0:00:46]} 11. b3 {[%clk 0:02:12]}  Qh5 {[%clk 0:00:45]} 12. Qe3 {[%clk 0:01:47]}  Nbd7 {[%clk 0:00:43]} 13. Nf4 {[%clk 0:01:25]}  Qa5 {[%clk 0:00:41]} 14. e5 {[%clk 0:01:15]}  Nd5 {[%clk 0:00:39]} 15. Nxd5 {[%clk 0:01:11]}  Qxd5 {[%clk 0:00:35]} 16. Bc4 {[%clk 0:01:08]}  Qa5 {[%clk 0:00:34]} 17. exd6 {[%clk 0:01:01]}  O-O {[%clk 0:00:33]} 18. dxe7 {[%clk 0:00:56]}  Rfe8 {[%clk 0:00:32]} 19. O-O {[%clk 0:00:54]}  Bxf3 {[%clk 0:00:30]} 20. Qxf3 {[%clk 0:00:48]}  c5 {[%clk 0:00:28]} 21. Qxf7+ {[%clk 0:00:44]}  Kh8 {[%clk 0:00:20]} 22. d5 {[%clk 0:00:41]}  Ne5 {[%clk 0:00:19]} 23. Qf6+ {[%clk 0:00:39]}  Kg8 {[%clk 0:00:18]} 24. Qxe5 {[%clk 0:00:38]} 1-0


[Site "https://www.chess.com"]

[Event "Titled Tuesday Blitz January 10 Late 2023"]
[White "Zakhartsov, Vladimir"]
[Black "Deac, Bogdan-Daniel"]
[WhiteFideId "4145097"]
[BlackFideId "1226380"]
[WhiteElo "2552"]
[BlackElo "2700"]
[Result "1-0"]
[Round "07"]
[TimeControl "180+2"]
[Date "2023.01.10"]
[WhiteClock "0:00:02"]
[BlackClock "0:00:02"]

1. d4 {[%clk 0:00:00]}  Nf6 {[%clk 0:00:00]} 2. c4 {[%clk 0:03:00]}  e6 {[%clk 0:02:59]} 3. Nf3 {[%clk 0:03:01]}  d5 {[%clk 0:02:58]} 4. Nc3 {[%clk 0:03:01]}  Be7 {[%clk 0:02:59]} 5. Bf4 {[%clk 0:03:01]}  O-O {[%clk 0:02:59]} 6. e3 {[%clk 0:03:00]}  b6 {[%clk 0:02:58]} 7. Rc1 {[%clk 0:03:00]}  Bb7 {[%clk 0:02:56]} 8. a3 {[%clk 0:02:53]}  c5 {[%clk 0:02:47]} 9. cxd5 {[%clk 0:02:41]}  exd5 {[%clk 0:02:35]} 10. Bd3 {[%clk 0:02:35]}  c4 {[%clk 0:02:30]} 11. Bb1 {[%clk 0:02:34]}  a6 {[%clk 0:02:26]} 12. Ne5 {[%clk 0:02:34]}  Nbd7 {[%clk 0:02:26]} 13. g4 {[%clk 0:02:33]}  b5 {[%clk 0:02:23]} 14. g5 {[%clk 0:02:23]}  Ne4 {[%clk 0:02:17]} 15. Bxe4 {[%clk 0:02:22]}  dxe4 {[%clk 0:02:11]} 16. Qg4 {[%clk 0:01:51]}  Nb6 {[%clk 0:02:08]} 17. h4 {[%clk 0:01:44]}  Qc8 {[%clk 0:01:45]} 18. Qg3 {[%clk 0:01:41]}  Qf5 {[%clk 0:01:37]} 19. h5 {[%clk 0:01:33]}  f6 {[%clk 0:01:35]} 20. gxf6 {[%clk 0:01:28]}  Bxf6 {[%clk 0:01:34]} 21. Ng4 {[%clk 0:01:21]}  Qe6 {[%clk 0:01:35]} 22. Bd6 {[%clk 0:01:16]}  Be7 {[%clk 0:01:12]} 23. Be5 {[%clk 0:01:03]}  Rf3 {[%clk 0:00:46]} 24. Qg2 {[%clk 0:00:52]}  Raf8 {[%clk 0:00:45]} 25. Ne2 {[%clk 0:00:48]}  Nd5 {[%clk 0:00:39]} 26. Rg1 {[%clk 0:00:37]}  R8f7 {[%clk 0:00:24]} 27. Nf4 {[%clk 0:00:30]}  Nxf4 {[%clk 0:00:22]} 28. Bxf4 {[%clk 0:00:21]}  R3xf4 {[%clk 0:00:20]} 29. exf4 {[%clk 0:00:15]}  e3 {[%clk 0:00:12]} 30. Qg3 {[%clk 0:00:16]}  exf2+ {[%clk 0:00:13]} 31. Kxf2 {[%clk 0:00:07]}  Qd6 {[%clk 0:00:11]} 32. Ne5 {[%clk 0:00:08]}  Qxd4+ {[%clk 0:00:11]} 33. Ke2 {[%clk 0:00:02]}  Qe4+ {[%clk 0:00:11]} 34. Kd1 {[%clk 0:00:02]}  Qd4+ {[%clk 0:00:08]} 35. Ke2 {[%clk 0:00:03]}  Qe4+ {[%clk 0:00:05]} 36. Kd1 {[%clk 0:00:03]}  Bf6 {[%clk 0:00:04]} 37. Nxf7 {[%clk 0:00:04]}  Kxf7 {[%clk 0:00:04]} 38. Rc2 {[%clk 0:00:03]}  Qf5 {[%clk 0:00:05]} 39. Rd2 {[%clk 0:00:02]}  Be4 {[%clk 0:00:04]} 40. Ke1 {[%clk 0:00:02]}  Qc5 {[%clk 0:00:04]} 41. Qf2 {[%clk 0:00:02]}  Qc6 {[%clk 0:00:03]} 42. Qa7+ {[%clk 0:00:02]}  Ke6 {[%clk 0:00:03]} 43. Qe3 {[%clk 0:00:02]}  c3 {[%clk 0:00:02]} 44. bxc3 {[%clk 0:00:02]}  Kf7 {[%clk 0:00:02]} 45. Kf2 {[%clk 0:00:02]}  Bf5 {[%clk 0:00:02]} 46. Re1 {[%clk 0:00:02]} 1-0


[Site "https://www.chess.com"]

[Event "Titled Tuesday Blitz January 10 Late 2023"]
[White "Dubov, Daniil"]
[Black "Mosadeghpour, Masoud"]
[WhiteFideId "24126055"]
[BlackFideId "12519278"]
[WhiteElo "2708"]
[BlackElo "2472"]
[Result "0-1"]
[Round "07"]
[TimeControl "180+2"]
[Date "2023.01.10"]
[WhiteClock "0:00:02"]
[BlackClock "0:00:12"]

1. d4 {[%clk 0:00:00]}  Nf6 {[%clk 0:00:00]} 2. Nf3 {[%clk 0:03:00]}  e6 {[%clk 0:02:59]} 3. Bg5 {[%clk 0:03:00]}  d5 {[%clk 0:02:59]} 4. Nbd2 {[%clk 0:03:01]}  Nbd7 {[%clk 0:02:59]} 5. e3 {[%clk 0:03:00]}  c5 {[%clk 0:02:57]} 6. c3 {[%clk 0:03:00]}  Bd6 {[%clk 0:02:57]} 7. Bd3 {[%clk 0:03:00]}  Qc7 {[%clk 0:02:57]} 8. O-O {[%clk 0:03:00]}  c4 {[%clk 0:02:55]} 9. Bc2 {[%clk 0:02:58]}  b5 {[%clk 0:02:51]} 10. e4 {[%clk 0:02:58]}  dxe4 {[%clk 0:02:51]} 11. Nxe4 {[%clk 0:02:54]}  Nxe4 {[%clk 0:02:49]} 12. Bxe4 {[%clk 0:02:54]}  Bb7 {[%clk 0:02:50]} 13. Qc2 {[%clk 0:02:55]}  h6 {[%clk 0:02:45]} 14. Bh4 {[%clk 0:02:44]}  O-O {[%clk 0:02:42]} 15. Rfe1 {[%clk 0:02:43]}  Bd5 {[%clk 0:02:41]} 16. Bxd5 {[%clk 0:02:42]}  exd5 {[%clk 0:02:39]} 17. Qf5 {[%clk 0:02:41]}  Qc6 {[%clk 0:02:40]} 18. Re2 {[%clk 0:02:39]}  Rae8 {[%clk 0:02:39]} 19. Rae1 {[%clk 0:02:23]}  Rxe2 {[%clk 0:02:36]} 20. Rxe2 {[%clk 0:02:23]}  b4 {[%clk 0:02:33]} 21. Bg3 {[%clk 0:02:24]}  Bxg3 {[%clk 0:02:31]} 22. hxg3 {[%clk 0:02:12]}  bxc3 {[%clk 0:02:25]} 23. bxc3 {[%clk 0:02:12]}  Nf6 {[%clk 0:02:24]} 24. Re7 {[%clk 0:02:13]}  Qa4 {[%clk 0:02:24]} 25. g4 {[%clk 0:02:09]}  Qxa2 {[%clk 0:02:19]} 26. g5 {[%clk 0:01:44]}  Ne4 {[%clk 0:02:11]} 27. Ne5 {[%clk 0:01:42]}  Nxg5 {[%clk 0:01:55]} 28. Nd7 {[%clk 0:01:17]}  Rd8 {[%clk 0:01:40]} 29. f4 {[%clk 0:01:15]}  Qa3 {[%clk 0:01:32]} 30. Nf6+ {[%clk 0:01:13]}  gxf6 {[%clk 0:01:10]} 31. Qxf6 {[%clk 0:00:57]}  Rf8 {[%clk 0:01:07]} 32. fxg5 {[%clk 0:00:58]}  Qc1+ {[%clk 0:00:56]} 33. Kh2 {[%clk 0:00:43]}  Qxg5 {[%clk 0:00:56]} 34. Qd6 {[%clk 0:00:28]}  a5 {[%clk 0:00:57]} 35. Re5 {[%clk 0:00:28]}  Qf4+ {[%clk 0:00:48]} 36. Kh3 {[%clk 0:00:20]}  a4 {[%clk 0:00:48]} 37. Qxd5 {[%clk 0:00:20]}  a3 {[%clk 0:00:36]} 38. Qxc4 {[%clk 0:00:20]}  Qc1 {[%clk 0:00:32]} 39. Kh2 {[%clk 0:00:18]}  Qf4+ {[%clk 0:00:19]} 40. Kh3 {[%clk 0:00:13]}  Qc1 {[%clk 0:00:18]} 41. Qb3 {[%clk 0:00:13]}  Qh1+ {[%clk 0:00:17]} 42. Kg3 {[%clk 0:00:08]}  Kh8 {[%clk 0:00:14]} 43. Re4 {[%clk 0:00:08]}  Rg8+ {[%clk 0:00:13]} 44. Rg4 {[%clk 0:00:03]}  Rxg4+ {[%clk 0:00:13]} 45. Kxg4 {[%clk 0:00:03]}  Qxg2+ {[%clk 0:00:12]} 46. Kf4 {[%clk 0:00:04]}  a2 {[%clk 0:00:13]} 47. Qa3 {[%clk 0:00:03]}  Kg7 {[%clk 0:00:13]} 48. c4 {[%clk 0:00:01]}  Qf1+ {[%clk 0:00:12]} 49. Ke5 {[%clk 0:00:01]}  a1=Q {[%clk 0:00:12]} 50. Qg3+ {[%clk 0:00:02]}  Kf8 {[%clk 0:00:12]} 51. Kd5 {[%clk 0:00:02]}  Qa8+ {[%clk 0:00:12]} 52. Kc5 {[%clk 0:00:02]}  Qc8+ {[%clk 0:00:12]} 0-1


[Site "https://www.chess.com"]

[Event "Titled Tuesday Blitz January 10 Late 2023"]
[White "Moroni, Luca Jr"]
[Black "Fedoseev, Vladimir"]
[WhiteFideId "865834"]
[BlackFideId "24130737"]
[WhiteElo "2535"]
[BlackElo "2680"]
[Result "0-1"]
[Round "07"]
[TimeControl "180+2"]
[Date "2023.01.10"]
[WhiteClock "0:00:01"]
[BlackClock "0:00:07"]

1. d4 {[%clk 0:00:00]}  d5 {[%clk 0:00:00]} 2. Nf3 {[%clk 0:03:00]}  Nf6 {[%clk 0:02:57]} 3. c3 {[%clk 0:03:00]}  Nbd7 {[%clk 0:02:54]} 4. Bf4 {[%clk 0:03:01]}  Nh5 {[%clk 0:02:49]} 5. Bd2 {[%clk 0:02:59]}  c5 {[%clk 0:02:47]} 6. e3 {[%clk 0:02:57]}  g6 {[%clk 0:02:46]} 7. c4 {[%clk 0:02:50]}  cxd4 {[%clk 0:02:45]} 8. Nxd4 {[%clk 0:02:47]}  Bg7 {[%clk 0:02:34]} 9. cxd5 {[%clk 0:02:44]}  O-O {[%clk 0:02:29]} 10. Nc3 {[%clk 0:02:44]}  Nb6 {[%clk 0:02:29]} 11. Be2 {[%clk 0:02:43]}  Nf4 {[%clk 0:02:28]} 12. exf4 {[%clk 0:02:39]}  Bxd4 {[%clk 0:02:05]} 13. Bf3 {[%clk 0:02:29]}  Bf5 {[%clk 0:02:06]} 14. Be3 {[%clk 0:02:30]}  Bg7 {[%clk 0:02:05]} 15. Bd4 {[%clk 0:02:06]}  Bh6 {[%clk 0:01:56]} 16. g4 {[%clk 0:02:03]}  Bd7 {[%clk 0:01:35]} 17. g5 {[%clk 0:01:29]}  Bg7 {[%clk 0:01:34]} 18. Bxg7 {[%clk 0:01:28]}  Kxg7 {[%clk 0:01:34]} 19. Qd4+ {[%clk 0:01:27]}  Kg8 {[%clk 0:01:35]} 20. h4 {[%clk 0:01:28]}  Bf5 {[%clk 0:01:25]} 21. h5 {[%clk 0:01:25]}  Rc8 {[%clk 0:01:21]} 22. b3 {[%clk 0:01:07]}  Qd7 {[%clk 0:01:17]} 23. Rc1 {[%clk 0:00:49]}  gxh5 {[%clk 0:00:52]} 24. O-O {[%clk 0:00:43]}  f6 {[%clk 0:00:47]} 25. d6 {[%clk 0:00:29]}  fxg5 {[%clk 0:00:26]} 26. Nd5 {[%clk 0:00:23]}  Qxd6 {[%clk 0:00:23]} 27. Rxc8 {[%clk 0:00:14]}  Nxc8 {[%clk 0:00:21]} 28. fxg5 {[%clk 0:00:06]}  Bh3 {[%clk 0:00:18]} 29. Re1 {[%clk 0:00:06]}  Rxf3 {[%clk 0:00:11]} 30. Nxe7+ {[%clk 0:00:06]}  Kf7 {[%clk 0:00:10]} 31. Qc4+ {[%clk 0:00:06]}  Be6 {[%clk 0:00:07]} 32. Nxc8 {[%clk 0:00:03]}  Qd7 {[%clk 0:00:06]} 33. Qe4 {[%clk 0:00:04]}  Rf5 {[%clk 0:00:03]} 34. g6+ {[%clk 0:00:02]}  hxg6 {[%clk 0:00:04]} 35. Qxb7 {[%clk 0:00:02]}  Rg5+ {[%clk 0:00:03]} 36. Kh2 {[%clk 0:00:02]}  Qxb7 {[%clk 0:00:02]} 37. Nd6+ {[%clk 0:00:02]}  Kf6 {[%clk 0:00:02]} 38. Nxb7 {[%clk 0:00:02]}  Rd5 {[%clk 0:00:02]} 39. Re2 {[%clk 0:00:03]}  Bc8 {[%clk 0:00:03]} 40. Re8 {[%clk 0:00:03]}  Bxb7 {[%clk 0:00:02]} 41. Rb8 {[%clk 0:00:01]}  Rd7 {[%clk 0:00:03]} 42. Kg3 {[%clk 0:00:02]}  Rf7 {[%clk 0:00:03]} 43. f4 {[%clk 0:00:02]}  Be4 {[%clk 0:00:04]} 44. b4 {[%clk 0:00:02]}  Bf5 {[%clk 0:00:04]} 45. a4 {[%clk 0:00:02]}  Kg7 {[%clk 0:00:05]} 46. b5 {[%clk 0:00:01]}  Rd7 {[%clk 0:00:06]} 47. a5 {[%clk 0:00:01]}  Rd3+ {[%clk 0:00:07]} 48. Kf2 {[%clk 0:00:01]}  Rb3 {[%clk 0:00:07]} 49. b6 {[%clk 0:00:02]}  axb6 {[%clk 0:00:07]} 50. axb6 {[%clk 0:00:01]}  h4 {[%clk 0:00:07]} 51. Rb7+ {[%clk 0:00:02]}  Kh6 {[%clk 0:00:07]} 52. Rb8 {[%clk 0:00:01]}  Kh5 {[%clk 0:00:07]} 0-1


[Site "https://www.chess.com"]

[Event "Titled Tuesday Blitz January 10 Late 2023"]
[White "Kamsky, Gata"]
[Black "Naroditsky, Daniel"]
[WhiteFideId "2000024"]
[BlackFideId "2026961"]
[WhiteElo "2665"]
[BlackElo "2618"]
[Result "1/2-1/2"]
[Round "07"]
[TimeControl "180+2"]
[Date "2023.01.10"]
[WhiteClock "0:00:22"]
[BlackClock "0:00:37"]

1. e4 {[%clk 0:00:00]}  c6 {[%clk 0:00:00]} 2. Nf3 {[%clk 0:03:00]}  d5 {[%clk 0:02:54]} 3. d3 {[%clk 0:02:55]}  Qc7 {[%clk 0:02:55]} 4. Nc3 {[%clk 0:02:55]}  dxe4 {[%clk 0:02:54]} 5. dxe4 {[%clk 0:02:54]}  e5 {[%clk 0:02:54]} 6. a4 {[%clk 0:02:54]}  Nf6 {[%clk 0:02:55]} 7. Bg5 {[%clk 0:02:40]}  Nbd7 {[%clk 0:02:52]} 8. Bc4 {[%clk 0:02:37]}  Bb4 {[%clk 0:02:47]} 9. O-O {[%clk 0:02:33]}  O-O {[%clk 0:02:46]} 10. Qe2 {[%clk 0:02:29]}  a5 {[%clk 0:02:40]} 11. Na2 {[%clk 0:02:07]}  Be7 {[%clk 0:02:37]} 12. Nc3 {[%clk 0:02:04]}  Nc5 {[%clk 0:02:37]} 13. Rfd1 {[%clk 0:01:57]}  Bg4 {[%clk 0:02:35]} 14. h3 {[%clk 0:01:49]}  Bh5 {[%clk 0:02:31]} 15. Bh4 {[%clk 0:01:48]}  Bg6 {[%clk 0:02:32]} 16. Bg3 {[%clk 0:01:24]}  Bd6 {[%clk 0:02:11]} 17. Rxd6 {[%clk 0:01:22]}  Qxd6 {[%clk 0:02:11]} 18. Nxe5 {[%clk 0:00:50]}  Qe7 {[%clk 0:02:11]} 19. Nxg6 {[%clk 0:00:50]}  hxg6 {[%clk 0:02:01]} 20. e5 {[%clk 0:00:49]}  Nfd7 {[%clk 0:02:02]} 21. Re1 {[%clk 0:00:46]}  Rae8 {[%clk 0:02:01]} 22. h4 {[%clk 0:00:45]}  Kh8 {[%clk 0:01:43]} 23. Qg4 {[%clk 0:00:43]}  Nf6 {[%clk 0:01:31]} 24. Qg5 {[%clk 0:00:40]}  Nh5 {[%clk 0:01:28]} 25. Bh2 {[%clk 0:00:32]}  Nf6 {[%clk 0:01:18]} 26. Re3 {[%clk 0:00:32]}  Nfd7 {[%clk 0:00:46]} 27. Qxe7 {[%clk 0:00:28]}  Rxe7 {[%clk 0:00:44]} 28. e6 {[%clk 0:00:23]}  Rxe6 {[%clk 0:00:44]} 29. Bxe6 {[%clk 0:00:24]}  Nxe6 {[%clk 0:00:37]} 30. Ne4 {[%clk 0:00:22]} 1/2-1/2


[Site "https://www.chess.com"]